bitfinex-derivatives/quotes_BTCF0:USTF0_20241224
["timestamp","ask_amount","ask_price","bid_price","bid_amount"]
[1735066637971,0.1717684,98621.0,98620.0,0.001]
[1735066640983,0.051727,98621.0,98620.0,0.001]
[1735066653890,0.051727,98621.0,98620.0,0.051727]
[1735066655089,0.051727,98621.0,98620.0,0.001]
[1735066659698,0.20185557,98621.0,98620.0,0.001]
[1735066661100,0.051727,98621.0,98620.0,0.001]
[1735066665501,0.20185557,98621.0,98620.0,0.001]
[1735066668199,0.051727,98621.0,98620.0,0.001]
[1735066670406,1.551727,98621.0,98620.0,0.001]
[1735066672006,1.601051,98621.0,98620.0,0.001]
[1735066673011,0.101051,98621.0,98620.0,0.001]
[1735066681999,0.18031376,98626.0,98625.0,0.050724]
[1735066682204,0.21135677,98640.0,98626.0,0.050724]
[1735066682509,0.21135677,98640.0,98634.0,0.3608]
[1735066683298,0.050716,98641.0,98638.0,0.050717]
[1735066683514,0.001,98640.0,98638.0,0.050717]
[1735066683912,0.001,98640.0,98639.0,0.050717]
[1735066685503,0.57215677,98665.0,98639.0,0.050717]
[1735066685504,0.11994972,98644.0,98639.0,0.050717]
[1735066685707,0.11994972,98644.0,98643.0,0.3608]
[1735066686007,0.15150523,98649.0,98643.0,0.411515]
[1735066686214,0.15150523,98649.0,98648.0,0.050713]
[1735066686810,0.00152134,98649.0,98648.0,0.050713]
[1735066687217,0.00152134,98649.0,98648.0,0.052713]
[1735066687514,0.08985348,98656.0,98648.0,0.002]
[1735066687817,0.08985348,98656.0,98655.0,0.050709]
[1735066688319,0.08985348,98661.0,98655.0,0.050709]
[1735066688813,0.08985348,98661.0,98651.0,0.3608]
[1735066689018,0.18858821,98661.0,98648.0,0.001]
[1735066689317,0.001,98656.0,98646.0,0.087]
[1735066689717,1.5,98651.0,98646.0,0.087]
[1735066689919,0.050713,98648.0,98646.0,0.087]
[1735066691616,0.050713,98648.0,98646.0,0.088]
[1735066695720,0.08985348,98657.0,98651.0,0.050711]
[1735066696024,0.050711,98653.0,98646.0,0.138714]
[1735066696424,0.08985348,98657.0,98646.0,0.138714]
[1735066696725,0.050707,98660.0,98646.0,0.138714]
[1735066696925,1.59929474,98661.0,98646.0,0.138714]
[1735066697222,0.05071,98653.0,98646.0,0.138714]
[1735066697822,0.050711,98652.0,98646.0,0.138714]
[1735066698013,0.050711,98652.0,98646.0,0.087]
[1735066698209,0.050711,98652.0,98648.0,0.050712]
[1735066698414,0.050711,98652.0,98649.0,0.050712]
[1735066700729,0.051711,98652.0,98649.0,0.050712]
[1735066701024,0.051711,98652.0,98649.0,0.051712]
[1735066704419,0.001,98652.0,98649.0,0.051712]
[1735066704624,0.050711,98651.0,98649.0,0.051712]
[1735066706022,0.050711,98651.0,98649.0,0.050712]
[1735066706326,0.050711,98651.0,98649.0,0.051712]
[1735066706526,0.051711,98651.0,98649.0,0.051712]
[1735066706824,0.051711,98651.0,98650.0,0.3608]
[1735066707827,0.050711,98651.0,98650.0,0.3608]
[1735066708029,0.052711,98651.0,98650.0,0.3608]
[1735066708231,0.052711,98651.0,98650.0,0.3618]
[1735066712732,0.14256448,98651.0,98650.0,0.3618]
[1735066713827,0.052711,98651.0,98650.0,0.3618]
[1735066719133,0.052711,98651.0,98650.0,0.001]
[1735066719430,0.050713,98648.0,98647.0,0.24221489]
[1735066719618,1.550713,98648.0,98647.0,0.24221489]
[1735066720232,0.050713,98648.0,98647.0,0.24221489]
[1735066720728,1.550713,98648.0,98647.0,0.24321489]
[1735066721033,1.550713,98648.0,98633.0,0.36317943]
[1735066721034,0.050716,98641.0,98633.0,0.18242663]
[1735066721229,0.3608,98636.0,98633.0,0.18242663]
[1735066721426,0.05072,98634.0,98633.0,0.18242663]
[1735066722534,0.05072,98633.0,98632.0,0.00152076]
[1735066723739,0.05072,98633.0,98632.0,0.00352076]
[1735066723933,0.05172,98633.0,98632.0,0.00352076]
[1735066731532,0.14154907,98633.0,98632.0,0.00352076]
[1735066733236,0.05172,98633.0,98632.0,0.00352076]
[1735066738928,0.14154907,98633.0,98632.0,0.00352076]
[1735066740036,0.05172,98633.0,98632.0,0.00352076]
[1735066749548,0.14997611,98637.0,98632.0,0.05424176]
[1735066749848,0.050716,98642.0,98638.0,0.050718]
[1735066750039,0.17951377,98644.0,98636.0,0.3608]
[1735066750342,0.17951377,98644.0,98640.0,0.050717]
[1735066750537,0.17951377,98644.0,98641.0,0.050716]
[1735066750737,0.050714,98645.0,98641.0,0.050716]
[1735066751137,0.17951377,98656.0,98641.0,0.050716]
[1735066751348,0.050715,98644.0,98641.0,0.050716]
[1735066751936,0.001,98642.0,98641.0,0.2331218]
[1735066752647,0.051715,98644.0,98641.0,0.2331218]
[1735066752844,0.051715,98644.0,98641.0,0.2341218]
[1735066753042,0.050715,98644.0,98642.0,0.0744]
[1735066753842,0.050715,98643.0,98642.0,0.0744]
[1735066756049,0.051715,98643.0,98642.0,0.0744]
[1735066756942,0.001,98643.0,98642.0,0.0744]
[1735066757142,0.001,98643.0,98642.0,0.125116]
[1735066757850,0.001,98643.0,98642.0,0.13501215]
[1735066778067,0.09099714,98643.0,98642.0,0.13501215]
[1735066779560,0.001,98643.0,98642.0,0.13501215]
[1735066787673,0.09106339,98643.0,98642.0,0.13501215]
[1735066788458,0.09106339,98643.0,98642.0,0.485916]
[1735066788868,0.001,98643.0,98642.0,0.485916]
[1735066789065,0.001,98643.0,98642.0,0.49607436]
[1735066790170,0.051715,98643.0,98642.0,0.44535836]
[1735066795865,0.001,98643.0,98642.0,0.44535836]
[1735066796060,0.001,98643.0,98642.0,0.49607436]
[1735066797968,0.051715,98643.0,98642.0,0.3608]
[1735066798165,0.051715,98643.0,98637.0,0.30389589]
[1735066798166,0.050716,98642.0,98637.0,0.30389589]
[1735066798477,0.050717,98640.0,98637.0,0.30389589]
[1735066798775,0.001,98643.0,98639.0,0.24337583]
[1735066798973,0.050717,98640.0,98639.0,0.24337583]
[1735066800275,0.050717,98640.0,98639.0,0.001]
[1735066801370,0.051717,98640.0,98639.0,0.001]
[1735066802678,0.17159981,98640.0,98639.0,0.001]
[1735066803578,0.53239981,98640.0,98639.0,0.001]
[1735066804083,0.412517,98640.0,98639.0,0.001]
[1735066805675,0.051717,98640.0,98639.0,0.001]
[1735066805876,0.412517,98640.0,98639.0,0.001]
[1735066806071,0.461835,98640.0,98639.0,0.001]
[1735066807265,0.101035,98640.0,98639.0,0.001]
[1735066807470,0.001,98640.0,98639.0,0.051717]
[1735066809978,0.001,98640.0,98639.0,0.23416796]
[1735066811180,0.001,98640.0,98639.0,0.051717]
[1735066812685,0.001,98640.0,98639.0,0.06193925]
[1735066818394,0.001,98640.0,98639.0,0.24413867]
[1735066819384,0.001,98640.0,98639.0,0.06193925]
[1735066826991,0.001,98640.0,98639.0,0.01122225]
[1735066827390,0.051717,98640.0,98639.0,0.01122225]
[1735066828589,0.051717,98640.0,98639.0,0.08002225]
[1735066828995,0.051717,98640.0,98639.0,0.0698]
[1735066833403,0.051717,98640.0,98639.0,0.001]
[1735066833996,0.05072,98633.0,98632.0,0.18224011]
[1735066834202,0.41152,98633.0,98632.0,0.18224011]
[1735066834498,0.050727,98620.0,98619.0,0.00152075]
[1735066836904,0.050727,98620.0,98619.0,0.00252075]
[1735066837105,0.14041216,98620.0,98619.0,0.00252075]
[1735066837307,0.14141216,98620.0,98619.0,0.00252075]
[1735066840110,0.051727,98620.0,98619.0,0.00252075]
[1735066846114,0.050727,98620.0,98619.0,0.00152075]
[1735066846311,0.052727,98620.0,98619.0,0.00152075]
[1735066848904,0.002,98620.0,98605.0,0.3608]
[1735066849114,0.050734,98606.0,98605.0,0.3608]
[1735066850205,0.051734,98606.0,98605.0,0.001]
[1735066851215,0.050737,98601.0,98600.0,0.1]
[1735066851402,0.411537,98601.0,98600.0,0.1]
[1735066852315,0.415537,98601.0,98600.0,0.1]
[1735066852534,0.419537,98601.0,98600.0,0.1]
[1735066853304,0.419537,98601.0,98577.0,0.18224011]
[1735066853305,0.050749,98578.0,98577.0,0.18224011]
[1735066853712,0.050749,98578.0,98573.0,0.0741]
[1735066853713,0.05075,98575.0,98573.0,0.0741]
[1735066856707,0.05175,98575.0,98573.0,0.0741]
[1735066858814,0.050756,98563.0,98562.0,0.3608]
[1735066859006,0.050756,98563.0,98562.0,0.0735]
[1735066860218,0.050762,98552.0,98551.0,0.0762]
[1735066860620,0.050762,98552.0,98544.0,0.0735]
[1735066860919,0.050766,98545.0,98544.0,0.0735]
[1735066861419,0.411566,98545.0,98544.0,0.0735]
[1735066861919,0.3608,98545.0,98531.0,0.0762]
[1735066862220,0.050774,98529.0,98528.0,0.0701]
[1735066863616,0.051774,98529.0,98528.0,0.0701]
[1735066864519,0.001,98529.0,98528.0,0.0701]
[1735066867023,0.3618,98529.0,98528.0,0.0701]
[1735066867418,0.050787,98503.0,98502.0,0.36232278]
[1735066868225,0.411587,98503.0,98502.0,0.00152278]
[1735066868418,0.411587,98503.0,98501.0,0.0694]
[1735066868419,0.400527,98503.0,98501.0,0.0694]
[1735066868621,0.039727,98503.0,98501.0,0.0694]
[1735066868820,0.3608,98502.0,98501.0,0.0694]
[1735066869018,0.041727,98503.0,98501.0,0.0694]
[1735066869225,0.050788,98501.0,98489.0,0.18224011]
[1735066869426,0.002,98503.0,98481.0,0.0705]
[1735066869620,0.050798,98482.0,98481.0,0.0705]
[1735066870627,0.3608,98496.0,98481.0,0.0705]
[1735066870926,0.050788,98502.0,98498.0,0.05079]
[1735066871130,0.050789,98501.0,98499.0,0.0708]
[1735066873625,0.051789,98501.0,98499.0,0.0708]
[1735066877129,0.001,98501.0,98499.0,0.0708]
[1735066878228,0.051789,98501.0,98499.0,0.0708]
[1735066878425,0.001,98501.0,98500.0,0.3608]
[1735066879425,0.050787,98503.0,98500.0,0.3608]
[1735066879629,0.050787,98503.0,98501.0,0.0712]
[1735066880417,0.050788,98501.0,98491.0,0.3608]
[1735066880632,0.050797,98484.0,98483.0,0.0753]
[1735066882726,0.001,98484.0,98483.0,0.0753]
[1735066883423,0.001,98484.0,98483.0,0.126098]
[1735066885321,0.001,98484.0,98483.0,0.0753]
[1735066887136,0.051797,98484.0,98483.0,0.0753]
[1735066887433,0.051797,98484.0,98463.0,0.00012674]
[1735066887434,0.050805,98469.0,98468.0,0.0759]
[1735066888729,0.050805,98469.0,98468.0,0.1478]
[1735066888928,0.050797,98484.0,98468.0,0.1478]
[1735066889237,0.050798,98483.0,98479.0,0.3608]
[1735066889437,0.050798,98483.0,98480.0,0.0709]
[1735066890125,0.3608,98482.0,98470.0,0.09888327]
[1735066890737,0.411598,98482.0,98475.0,0.050801]
[1735066891344,0.050799,98481.0,98475.0,0.050801]
[1735066891928,0.050799,98481.0,98479.0,0.001]
[1735066892538,0.050799,98480.0,98476.0,0.18224011]
[1735066893034,0.050799,98480.0,98478.0,0.18224011]
[1735066893235,0.050799,98480.0,98479.0,0.002]
[1735066894625,0.050799,98480.0,98478.0,0.18224011]
[1735066894831,0.051799,98480.0,98478.0,0.18224011]
[1735066895428,0.051799,98480.0,98479.0,0.001]
[1735066895836,0.050799,98480.0,98478.0,0.18224011]
[1735066896032,0.051799,98480.0,98478.0,0.18324011]
[1735066896237,0.0508,98479.0,98478.0,0.18324011]
[1735066896442,0.0508,98479.0,98478.0,0.18224011]
[1735066896639,0.3608,98482.0,98478.0,0.18224011]
[1735066896640,0.001,98480.0,98478.0,0.18224011]
[1735066896840,0.001,98480.0,98479.0,0.0508]
[1735066897731,0.14004721,98499.0,98493.0,0.050792]
[1735066897944,0.08925721,98501.0,98494.0,0.7927]
[1735066898145,0.08925721,98501.0,98500.0,0.050789]
[1735066899248,0.001,98501.0,98500.0,0.050789]
[1735066899939,0.005,98501.0,98496.0,0.050791]
[1735066900138,0.007,98501.0,98496.0,0.050791]
[1735066900445,0.007,98501.0,98497.0,0.05079]
[1735066900835,0.007,98501.0,98497.0,0.29387273]
[1735066901340,0.05079,98498.0,98497.0,0.24308273]
[1735066902040,0.050792,98493.0,98492.0,0.18231665]
[1735066902248,0.411592,98493.0,98492.0,0.18231665]
[1735066903342,0.413592,98493.0,98492.0,0.001]
[1735066903538,0.050801,98476.0,98475.0,0.06106337]
[1735066905138,0.051801,98476.0,98475.0,0.06206337]
[1735066905941,0.051801,98476.0,98475.0,0.01126137]
[1735066906646,0.001,98476.0,98475.0,0.01126137]
[1735066906951,0.001,98476.0,98475.0,0.06206337]
[1735066907450,0.001,98476.0,98475.0,0.10497011]
[1735066908543,0.050792,98495.0,98490.0,0.050794]
[1735066908847,0.05079,98498.0,98491.0,0.120493]
[1735066909043,0.14006826,98502.0,98497.0,0.3608]
[1735066909342,0.08928026,98502.0,98494.0,0.3608]
[1735066909540,0.08895026,98502.0,98501.0,0.050788]
[1735066910154,0.050785,98507.0,98501.0,0.050788]
[1735066910942,0.11958021,98517.0,98494.0,0.3608]
[1735066911141,0.003,98502.0,98501.0,0.050788]
[1735066911352,0.005,98502.0,98501.0,0.050788]
[1735066911657,0.003,98502.0,98501.0,0.050788]
[1735066911844,0.001,98507.0,98506.0,0.050786]
[1735066912153,0.001,98507.0,98506.0,0.411586]
[1735066912348,0.3608,98520.0,98506.0,0.3608]
[1735066912554,0.050779,98519.0,98513.0,0.050782]
[1735066912755,0.11958021,98522.0,98517.0,0.05078]
[1735066912945,0.11958021,98526.0,98516.0,0.3608]
[1735066913154,0.11958021,98526.0,98518.0,0.09888327]
[1735066913545,0.11958021,98526.0,98523.0,0.050777]
[1735066913855,0.11958021,98526.0,98525.0,0.050776]
[1735066914054,0.11958021,98526.0,98525.0,0.411576]
[1735066914250,0.01378021,98526.0,98525.0,0.411576]
[1735066914459,1.50060001,98557.0,98542.0,0.050767]
[1735066914460,0.14947527,98550.0,98542.0,0.050767]
[1735066914643,0.14947527,98550.0,98542.0,0.411567]
[1735066915950,0.050753,98569.0,98558.0,0.050759]
[1735066916153,0.05076,98556.0,98548.0,0.050764]
[1735066916655,0.09888327,98560.0,98549.0,0.050763]
[1735066917365,0.050766,98546.0,98542.0,0.37269687]
[1735066917656,0.050766,98546.0,98542.0,0.3608]
[1735066918850,0.050766,98546.0,98542.0,0.3648]
[1735066919248,1.50052001,98551.0,98542.0,0.004]
[1735066919557,0.05077,98537.0,98535.0,0.18164366]
[1735066919762,0.3608,98543.0,98526.0,0.050775]
[1735066919963,0.050771,98535.0,98526.0,0.050775]
[1735066920174,1.5,98534.0,98526.0,0.050775]
[1735066920573,0.050772,98534.0,98526.0,0.050775]
[1735066920976,0.3608,98543.0,98524.0,0.54336366]
[1735066921165,0.411567,98543.0,98542.0,0.002]
[1735066921577,0.001,98534.0,98529.0,0.050774]
[1735066922262,0.050768,98540.0,98529.0,0.050774]
[1735066922461,0.050768,98540.0,98531.0,0.050773]
[1735066922873,0.001,98534.0,98531.0,0.050773]
[1735066923668,0.001,98534.0,98529.0,0.005]
[1735066924466,0.050773,98530.0,98529.0,0.005]
[1735066925272,0.050773,98530.0,98528.0,0.0015223]
[1735066925475,0.3608,98532.0,98529.0,0.005]
[1735066925673,0.3608,98532.0,98531.0,0.050773]
[1735066927176,0.3608,98532.0,98528.0,0.0065223]
[1735066927385,0.050774,98529.0,98528.0,0.0065223]
[1735066928081,0.050774,98529.0,98528.0,0.0015223]
[1735066928575,0.051774,98529.0,98528.0,0.0065223]
[1735066928772,0.001,98529.0,98528.0,0.0065223]
[1735066928967,0.001,98529.0,98528.0,0.0572963]
[1735066931580,0.05077,98537.0,98528.0,0.0522963]
[1735066931798,0.001,98529.0,98528.0,0.0572963]
[1735066932179,0.001,98529.0,98528.0,0.0522963]
[1735066932478,0.001,98529.0,98528.0,0.0572963]
[1735066932678,0.051774,98529.0,98528.0,0.0065223]
[1735066933484,0.412574,98529.0,98528.0,0.0065223]
[1735066934185,0.051774,98529.0,98528.0,0.0045223]
[1735066934389,0.001,98529.0,98528.0,0.0045223]
[1735066934592,0.004,98529.0,98528.0,0.0552963]
[1735066934777,0.003,98529.0,98528.0,0.0532963]
[1735066935380,0.053774,98529.0,98528.0,0.0532963]
[1735066936387,0.052774,98529.0,98528.0,0.0532963]
[1735066936993,0.002,98529.0,98528.0,0.0532963]
[1735066938082,0.050771,98534.0,98528.0,0.0025223]
[1735066938287,0.002,98529.0,98528.0,0.0522963]
[1735066938491,0.002,98529.0,98528.0,0.0532963]
[1735066939882,0.050772,98533.0,98528.0,0.0025223]
[1735066940596,0.002,98529.0,98528.0,0.0025223]
[1735066940792,0.002,98529.0,98528.0,0.0532963]
[1735066940995,0.002,98529.0,98528.0,0.0522963]
[1735066941297,0.050772,98533.0,98528.0,0.0532963]
[1735066941596,0.052772,98533.0,98528.0,0.0522963]
[1735066941899,0.052772,98533.0,98528.0,0.0532963]
[1735066942985,0.050772,98533.0,98528.0,0.0532963]
[1735066943191,0.3608,98536.0,98528.0,0.0532963]
[1735066943389,0.050773,98532.0,98528.0,0.0532963]
[1735066944102,0.050773,98532.0,98528.0,0.0562963]
[1735066944700,0.050773,98532.0,98528.0,0.0532963]
[1735066945299,0.050773,98532.0,98528.0,0.23793996]
[1735066946785,0.050773,98532.0,98528.0,0.23393996]
[1735066947097,0.050773,98532.0,98528.0,0.23493996]
[1735066947492,0.050773,98532.0,98528.0,0.23793996]
[1735066948903,0.052773,98532.0,98528.0,0.23793996]
[1735066949093,0.002,98532.0,98531.0,0.050773]
[1735066949491,0.09888327,98560.0,98528.0,0.18716596]
[1735066949492,0.14848101,98546.0,98530.0,0.18164366]
[1735066949691,0.14848101,98546.0,98545.0,0.050766]
[1735066950402,0.00152262,98555.0,98545.0,0.050766]
[1735066950602,0.00152262,98555.0,98554.0,0.050761]
[1735066951099,0.14848101,98562.0,98561.0,0.050757]
[1735066951895,0.3608,98572.0,98557.0,0.3608]
[1735066952191,0.3608,98572.0,98562.0,0.050756]
[1735066952900,0.3608,98564.0,98554.0,0.24348122]
[1735066953198,0.3608,98564.0,98555.0,0.18240703]
[1735066953500,0.009,98562.0,98556.0,0.05076]
[1735066953698,0.009,98562.0,98557.0,0.050759]
[1735066953892,0.41207601,98564.0,98559.0,0.050758]
[1735066954094,0.421556,98564.0,98559.0,0.050758]
[1735066955202,0.050756,98563.0,98559.0,0.050758]
[1735066955396,0.3688,98564.0,98554.0,0.06107419]
[1735066955602,0.050759,98558.0,98550.0,0.18240703]
[1735066955802,0.050759,98558.0,98550.0,0.23317003]
[1735066956005,0.050759,98558.0,98542.0,0.0653]
[1735066956006,0.050759,98558.0,98551.0,0.050762]
[1735066957101,0.004,98558.0,98548.0,0.18240703]
[1735066957299,0.050763,98550.0,98545.0,0.18240703]
[1735066958509,0.053763,98550.0,98546.0,0.01015036]
[1735066959406,0.056763,98550.0,98546.0,0.01015036]
[1735066959908,0.3668,98550.0,98530.0,0.16428327]
[1735066960094,0.050767,98542.0,98537.0,0.19262164]
[1735066960803,0.050767,98542.0,98537.0,0.24339164]
[1735066961004,0.050767,98542.0,98537.0,0.06398461]
[1735066961404,0.050767,98542.0,98537.0,0.06098461]
[1735066961600,0.050767,98542.0,98537.0,0.06398461]
[1735066962104,0.050765,98546.0,98537.0,0.06398461]
[1735066962300,0.050767,98543.0,98537.0,0.06398461]
[1735066962616,0.050769,98540.0,98537.0,0.01321461]
[1735066962996,0.050769,98540.0,98537.0,0.01021461]
[1735066963207,0.001,98546.0,98539.0,0.050769]
[1735066963503,0.001,98546.0,98545.0,0.050766]
[1735066964510,0.001,98546.0,98541.0,0.050767]
[1735066964699,0.001,98546.0,98543.0,0.050766]
[1735066965012,0.002,98546.0,98545.0,0.050766]
[1735066965210,0.001,98546.0,98545.0,0.050766]
[1735066965921,0.003,98546.0,98545.0,0.050766]
[1735066966607,0.001,98546.0,98545.0,0.050766]
[1735066966806,0.003,98546.0,98545.0,0.050766]
[1735066967515,0.002,98546.0,98545.0,0.050766]
[1735066968112,0.003,98546.0,98545.0,0.050766]
[1735066968714,0.003,98546.0,98545.0,0.23317303]
[1735066969109,0.053765,98546.0,98545.0,0.18240703]
[1735066969308,0.053765,98546.0,98545.0,0.07830703]
[1735066969507,0.050767,98542.0,98541.0,0.24270755]
[1735066969708,1.550767,98542.0,98541.0,0.24270755]
[1735066969907,0.050767,98542.0,98541.0,0.24270755]
[1735066970412,0.050773,98531.0,98530.0,0.24270755]
[1735066971317,0.050773,98530.0,98526.0,0.05229722]
[1735066971706,0.050774,98529.0,98526.0,0.00152222]
[1735066972515,0.050774,98528.0,98526.0,0.00352222]
[1735066973216,0.050774,98528.0,98526.0,0.00152222]
[1735066973418,0.050774,98528.0,98526.0,0.00752222]
[1735066973919,0.050774,98528.0,98526.0,0.00352222]
[1735066974115,0.051774,98528.0,98526.0,0.00752222]
[1735066974314,0.001,98528.0,98526.0,0.00752222]
[1735066974518,0.001,98528.0,98527.0,0.050775]
[1735066974714,0.14848101,98550.0,98538.0,0.09888327]
[1735066975020,0.14848101,98550.0,98544.0,0.050766]
[1735066975221,0.11938301,98550.0,98544.0,0.050766]
[1735066975521,0.17014601,98550.0,98544.0,0.050766]
[1735066976020,0.11938301,98550.0,98549.0,0.050764]
[1735066976339,0.12138301,98550.0,98549.0,0.050764]
[1735066976820,0.003,98550.0,98549.0,0.050764]
[1735066977010,0.003,98550.0,98539.0,0.0627]
[1735066977011,0.003,98550.0,98544.0,0.050766]
[1735066977413,0.005,98550.0,98544.0,0.050766]
[1735066977913,0.006,98550.0,98545.0,0.0631]
[1735066978514,0.003,98550.0,98545.0,0.0631]
[1735066978826,0.005,98550.0,98545.0,0.0631]
[1735066979010,0.050764,98549.0,98545.0,0.0631]
[1735066979210,0.003,98550.0,98546.0,0.411565]
[1735066979421,0.003,98550.0,98548.0,0.050764]
[1735066980413,0.004,98550.0,98548.0,0.050764]
[1735066981323,0.050764,98549.0,98545.0,0.0631]
[1735066981522,0.050765,98548.0,98545.0,0.0631]
[1735066982020,0.3608,98549.0,98545.0,0.0631]
[1735066982021,0.050765,98546.0,98545.0,0.0631]
[1735066982326,0.050769,98540.0,98535.0,0.24270755]
[1735066982535,0.050769,98539.0,98536.0,0.068]
[1735066983834,0.4308,98549.0,98536.0,0.068]
[1735066984125,0.002,98546.0,98542.0,0.050767]
[1735066984318,0.002,98546.0,98544.0,0.050766]
[1735066984519,0.002,98546.0,98539.0,0.09888327]
[1735066984725,0.002,98546.0,98545.0,0.050766]
[1735066985023,0.11938301,98551.0,98550.0,0.050763]
[1735066985825,0.36140001,98559.0,98543.0,0.3608]
[1735066986021,0.050756,98564.0,98557.0,0.050759]
[1735066986221,0.12090524,98565.0,98558.0,0.0671]
[1735066986425,0.12090524,98565.0,98559.0,0.050758]
[1735066986819,0.17166024,98565.0,98559.0,0.050758]
[1735066987220,0.00852223,98565.0,98559.0,0.050758]
[1735066987416,0.050756,98564.0,98559.0,0.050758]
[1735066987930,0.050756,98564.0,98559.0,0.051758]
[1735066988722,0.050756,98564.0,98559.0,0.001]
[1735066989029,0.056756,98564.0,98561.0,0.050757]
[1735066989222,0.056756,98564.0,98563.0,0.050756]
[1735066989423,0.064756,98564.0,98563.0,0.050756]
[1735066990332,0.014,98564.0,98563.0,0.050756]
[1735066990539,0.015,98564.0,98563.0,0.42282956]
[1735066991024,0.009,98564.0,98563.0,0.42282956]
[1735066991231,0.015,98564.0,98563.0,0.42282956]
[1735066991429,0.00152223,98565.0,98564.0,0.050756]
[1735066991628,0.11938301,98576.0,98564.0,0.050756]
[1735066991933,0.11938301,98576.0,98575.0,0.05075]
[1735066992624,0.050751,98575.0,98569.0,0.050753]
[1735066992824,0.050755,98565.0,98564.0,0.001]
[1735066993221,0.050755,98565.0,98561.0,0.60350755]
[1735066993222,0.050757,98562.0,98561.0,0.60442755]
[1735066993426,0.050757,98562.0,98561.0,0.24270755]
[1735066994130,0.00052001,98564.0,98552.0,0.050762]
[1735066994333,0.050758,98560.0,98552.0,0.050762]
[1735066994833,0.050758,98559.0,98556.0,0.00992214]
[1735066996229,0.050758,98559.0,98558.0,0.0691]
[1735066997735,0.051758,98559.0,98558.0,0.0691]
[1735066999536,0.001,98559.0,98558.0,0.0691]
[1735067000327,0.001,98559.0,98558.0,0.002]
[1735067001029,0.051758,98559.0,98558.0,0.002]
[1735067001541,0.050758,98559.0,98558.0,0.002]
[1735067001738,0.052758,98559.0,98558.0,0.002]
[1735067002338,0.050758,98559.0,98558.0,0.002]
[1735067002539,0.052758,98559.0,98558.0,0.002]
[1735067002737,0.052758,98559.0,98556.0,0.05076]
[1735067003238,0.002,98559.0,98556.0,0.05076]
[1735067003438,0.052758,98559.0,98558.0,0.001]
[1735067003933,0.001,98559.0,98556.0,0.05076]
[1735067004141,0.050759,98557.0,98556.0,0.05276]
[1735067004337,0.050759,98557.0,98556.0,0.002]
[1735067005529,0.051759,98557.0,98554.0,0.050761]
[1735067006348,0.051759,98557.0,98556.0,0.001]
[1735067006736,0.051759,98557.0,98554.0,0.050761]
[1735067006737,0.05076,98556.0,98554.0,0.052761]
[1735067007041,0.41156,98555.0,98554.0,0.052761]
[1735067008138,0.53094301,98555.0,98554.0,0.052761]
[1735067008839,0.53194301,98555.0,98554.0,0.050761]
[1735067009036,0.53194301,98555.0,98554.0,0.052761]
[1735067009836,0.48118301,98555.0,98554.0,0.052761]
[1735067010229,0.12038301,98555.0,98554.0,0.052761]
[1735067010434,0.00383425,98555.0,98554.0,0.052761]
[1735067010641,0.00182425,98555.0,98554.0,0.052761]
[1735067011740,0.00182425,98555.0,98554.0,0.06096763]
[1735067011940,0.001,98555.0,98554.0,0.06296763]
[1735067013039,0.001,98555.0,98554.0,0.06096763]
[1735067013239,0.001,98555.0,98554.0,0.06296763]
[1735067013943,0.050754,98567.0,98554.0,0.07710663]
[1735067014147,0.001,98555.0,98554.0,0.12786763]
[1735067014742,0.050754,98567.0,98559.0,0.050758]
[1735067015036,0.050753,98571.0,98562.0,0.050757]
[1735067015242,0.050753,98569.0,98563.0,0.0629]
[1735067015550,0.050756,98564.0,98563.0,0.0629]
[1735067017147,0.055756,98564.0,98563.0,0.0629]
[1735067019244,0.005,98564.0,98563.0,0.0629]
[1735067020346,0.002,98564.0,98563.0,0.0629]
[1735067020534,0.005,98564.0,98563.0,0.0629]
[1735067022646,0.005,98564.0,98563.0,0.113656]
[1735067025242,0.003,98564.0,98558.0,0.24316472]
[1735067025546,0.050758,98560.0,98556.0,0.24316472]
[1735067025942,0.3658,98564.0,98556.0,0.24316472]
[1735067026338,0.3628,98564.0,98556.0,0.29392472]
[1735067026750,0.050757,98562.0,98556.0,0.29392472]
[1735067027045,0.050757,98562.0,98556.0,0.05176]
[1735067029143,0.050759,98557.0,98556.0,0.002]
[1735067030242,0.051759,98557.0,98556.0,0.002]
[1735067031143,0.052759,98557.0,98556.0,0.002]
[1735067031350,0.10211917,98557.0,98556.0,0.002]
[1735067031743,0.05136017,98557.0,98556.0,0.05276]
[1735067032438,0.04936017,98557.0,98556.0,0.05276]
[1735067032643,0.004,98557.0,98556.0,0.05076]
[1735067033153,0.002,98557.0,98556.0,0.05076]
[1735067033354,0.001,98557.0,98556.0,0.05176]
[1735067034051,0.051759,98557.0,98556.0,0.001]
[1735067035540,0.001,98557.0,98549.0,0.050763]
[1735067035745,0.051759,98557.0,98556.0,0.001]
[1735067036144,0.050762,98552.0,98549.0,0.050763]
[1735067036846,0.050762,98552.0,98549.0,0.053763]
[1735067037357,0.08990477,98550.0,98549.0,0.053763]
[1735067038856,0.08990477,98550.0,98549.0,0.050763]
[1735067039046,0.08990477,98550.0,98549.0,0.053763]
[1735067039357,0.08990477,98550.0,98549.0,0.003]
[1735067040643,0.08990477,98552.0,98549.0,0.003]
[1735067040848,0.050763,98551.0,98549.0,0.003]
[1735067041048,0.050763,98550.0,98549.0,0.003]
[1735067041758,0.050764,98549.0,98542.0,0.37074488]
[1735067042162,0.050764,98549.0,98542.0,0.42151188]
[1735067042961,0.050764,98549.0,98542.0,0.42651188]
[1735067043162,0.050764,98548.0,98542.0,0.42751188]
[1735067043360,0.050765,98547.0,98542.0,0.42751188]